bitfinex/quotes_BTCUSD_20250831
["timestamp","ask_amount","ask_price","bid_price","bid_amount"]
[1756602519529,5.92343271,109440.0,109430.0,0.00538764]
[1756602519731,6.08431271,109440.0,109430.0,0.00538764]
[1756602520120,6.08629271,109440.0,109430.0,0.00538764]
[1756602520827,6.08631395,109440.0,109430.0,0.00538764]
[1756602521334,6.11098916,109440.0,109430.0,0.00538764]
[1756602521863,5.54879606,109440.0,109430.0,0.00538764]
[1756602522071,6.11098916,109440.0,109430.0,0.00044764]
[1756602523076,6.19928548,109440.0,109430.0,0.00044764]
[1756602523311,6.11098916,109440.0,109430.0,0.00044764]
[1756602525379,5.95010916,109440.0,109430.0,0.00044764]
[1756602525582,6.11094916,109440.0,109430.0,0.00339764]
[1756602526076,6.11094916,109440.0,109430.0,0.00044764]
[1756602527362,6.11094916,109440.0,109430.0,0.00339764]
[1756602527583,6.11094916,109440.0,109430.0,0.00538764]
[1756602527801,6.11095747,109440.0,109430.0,0.00538764]
[1756602528064,6.06980619,109440.0,109430.0,0.00538764]
[1756602528296,6.06980619,109440.0,109430.0,0.00044764]
[1756602528675,6.06980795,109440.0,109430.0,1e-08]
[1756602528879,6.09074677,109440.0,109430.0,1e-08]
[1756602529056,6.09211677,109440.0,109430.0,1e-08]
[1756602529467,6.09074677,109440.0,109430.0,1e-08]
[1756602531412,6.17904309,109440.0,109430.0,1e-08]
[1756602534965,6.1804222,109440.0,109430.0,1e-08]
[1756602535125,6.20371127,109440.0,109430.0,1e-08]
[1756602535377,6.59098415,109440.0,109430.0,1e-08]
[1756602535577,6.62381708,109440.0,109430.0,1e-08]
[1756602536357,6.66536361,109440.0,109430.0,1e-08]
[1756602537359,6.25523728,109440.0,109430.0,1e-08]
[1756602538445,6.23807924,109440.0,109430.0,1e-08]
[1756602538595,6.25523995,109440.0,109430.0,1e-08]
[1756602540193,6.25386995,109440.0,109430.0,1e-08]
[1756602541567,6.26163106,109440.0,109430.0,1e-08]
[1756602541777,6.27804699,109440.0,109430.0,1e-08]
[1756602543305,6.11720699,109440.0,109430.0,1e-08]
[1756602543506,6.27780699,109440.0,109430.0,1e-08]
[1756602544501,6.27779328,109440.0,109430.0,1e-08]
[1756602545068,6.29206122,109440.0,109430.0,1e-08]
[1756602546219,6.32498023,109440.0,109430.0,1e-08]
[1756602546928,6.16442023,109440.0,109430.0,1e-08]
[1756602547188,6.32361023,109440.0,109430.0,1e-08]
[1756602547396,0.34,109400.0,109390.0,0.04262275]
[1756602547577,5.43508197,109400.0,109390.0,0.04267042]
[1756602547738,5.43508197,109400.0,109390.0,0.04470042]
[1756602547945,5.43507341,109400.0,109390.0,0.04470042]
[1756602548863,5.43507184,109400.0,109390.0,0.04470042]
[1756602549061,5.43507184,109400.0,109390.0,0.04870042]
[1756602549448,5.43507184,109400.0,109390.0,0.05181042]
[1756602549859,5.59559184,109400.0,109390.0,0.04781042]
[1756602550245,5.59559184,109400.0,109390.0,0.04981042]
[1756602550547,5.59559184,109400.0,109390.0,0.04781042]
[1756602550941,5.59559184,109400.0,109390.0,0.04981042]
[1756602551931,5.43507184,109400.0,109390.0,0.04981042]
[1756602554150,5.44659368,109400.0,109390.0,0.04981042]
[1756602555567,5.10659368,109400.0,109390.0,0.04981042]
[1756602557089,5.10659368,109400.0,109390.0,0.04781042]
[1756602557382,5.1417959,109400.0,109390.0,0.04881042]
[1756602558669,5.12465369,109400.0,109390.0,0.04881042]
[1756602558812,5.13536607,109400.0,109390.0,0.04881042]
[1756602559018,4.82527747,109400.0,109390.0,0.04881042]
[1756602559248,5.14179405,109400.0,109390.0,0.04881042]
[1756602560389,4.82527747,109400.0,109390.0,0.04881042]
[1756602560626,5.14179405,109400.0,109390.0,0.04881042]
[1756602563146,5.16527747,109400.0,109390.0,0.04881042]
[1756602563353,5.48179405,109400.0,109390.0,0.04881042]
[1756602564262,5.48279405,109400.0,109390.0,0.04881042]
[1756602565854,5.48490405,109400.0,109390.0,0.04367042]
[1756602566100,5.48491478,109400.0,109390.0,0.04367042]
[1756602566945,5.64519478,109400.0,109390.0,0.04367042]
[1756602567844,5.67268678,109400.0,109390.0,0.04367042]
[1756602568061,5.67575678,109400.0,109390.0,0.04367042]
[1756602569538,5.67577133,109400.0,109390.0,0.04367042]
[1756602569762,5.76875134,109400.0,109390.0,0.04367042]
[1756602571597,5.7687507,109400.0,109390.0,0.04367042]
[1756602572686,5.7686707,109400.0,109390.0,0.04367042]
[1756602575547,5.45215412,109400.0,109390.0,0.04367042]
[1756602575762,5.7686707,109400.0,109390.0,0.04367042]
[1756602576141,5.7686707,109400.0,109390.0,0.00144767]
[1756602576650,5.78843409,109400.0,109390.0,0.00144767]
[1756602577168,5.7686707,109400.0,109390.0,0.00144767]
[1756602577580,5.78843261,109400.0,109390.0,0.00144767]
[1756602577813,5.62823261,109400.0,109390.0,0.00144767]
[1756602578226,5.78835261,109400.0,109390.0,0.00144767]
[1756602579779,5.62823261,109400.0,109390.0,0.00144767]
[1756602579983,5.31171603,109400.0,109390.0,0.00144767]
[1756602580207,5.78523193,109400.0,109390.0,0.00144767]
[1756602581657,5.76808048,109400.0,109390.0,0.00144767]
[1756602581842,5.78522989,109400.0,109390.0,0.00144767]
[1756602583702,5.76164869,109400.0,109390.0,0.00144767]
[1756602584021,5.78522755,109400.0,109390.0,0.00144767]
[1756602584150,5.76546564,109400.0,109390.0,0.00144767]
[1756602586204,5.60538564,109400.0,109390.0,0.00144767]
[1756602586381,5.76331564,109400.0,109390.0,0.00660767]
[1756602586567,5.76542564,109400.0,109390.0,0.00660767]
[1756602586774,5.46866336,109400.0,109390.0,0.00660767]
[1756602586969,5.46655336,109400.0,109390.0,0.00660767]
[1756602587199,5.78517994,109400.0,109390.0,0.00660767]
[1756602587396,5.30651336,109400.0,109390.0,0.00660767]
[1756602587602,5.76538564,109400.0,109390.0,0.00660767]
[1756602590488,5.76538564,109400.0,109390.0,0.00350767]
[1756602590890,5.7653879,109400.0,109390.0,0.00350767]
[1756602591398,5.78514543,109400.0,109390.0,0.00350767]
[1756602591603,5.78514647,109400.0,109390.0,0.00350767]
[1756602592711,5.46862989,109400.0,109390.0,0.00652767]
[1756602592880,5.78514647,109400.0,109390.0,0.00652767]
[1756602593286,5.78514647,109400.0,109390.0,0.00350767]
[1756602593490,5.46862989,109400.0,109390.0,0.00652767]
[1756602593690,5.78514647,109400.0,109390.0,0.00652767]
[1756602594088,5.46862989,109400.0,109390.0,0.00652767]
[1756602594284,5.76799552,109400.0,109390.0,0.00652767]
[1756602594550,5.78515335,109400.0,109390.0,0.00652767]
[1756602594854,5.46863677,109400.0,109390.0,0.00652767]
[1756602594981,5.78515335,109400.0,109390.0,0.00652767]
[1756602595387,5.78515335,109400.0,109390.0,0.00350767]
[1756602596901,5.71511082,109400.0,109390.0,0.00350767]
[1756602598622,5.68761882,109400.0,109390.0,0.00350767]
[1756602599448,5.69083882,109400.0,109390.0,0.00144767]
[1756602599760,5.68761882,109400.0,109390.0,0.00356767]
[1756602600950,5.35183657,109400.0,109390.0,0.00658767]
[1756602601207,5.68761359,109400.0,109390.0,0.00356767]
[1756602602325,5.68761359,109400.0,109390.0,0.00144767]
[1756602606023,5.37109701,109400.0,109390.0,0.00356767]
[1756602606224,5.68761359,109400.0,109390.0,0.00356767]
[1756602606559,5.37109701,109400.0,109390.0,0.00356767]
[1756602606768,5.68761359,109400.0,109390.0,0.00356767]
[1756602606965,5.70739404,109400.0,109390.0,0.00356767]
[1756602607950,5.73488804,109400.0,109390.0,0.00356767]
[1756602609650,5.73488804,109400.0,109390.0,0.00144767]
[1756602610814,5.39476765,109400.0,109390.0,0.00144767]
[1756602610995,5.41837669,109400.0,109390.0,0.00144767]
[1756602611224,5.73489327,109400.0,109390.0,0.00144767]
[1756602616125,5.41837669,109400.0,109390.0,0.00144767]
[1756602616337,5.73489327,109400.0,109390.0,0.00144767]
[1756602619188,5.73489382,109400.0,109390.0,0.00144767]
[1756602619595,5.41793724,109400.0,109390.0,0.00144767]
[1756602619878,5.30308678,109400.0,109390.0,0.04890042]
[1756602620085,5.61960336,109400.0,109390.0,0.04890042]
[1756602620328,5.59210936,109400.0,109390.0,0.04890042]
[1756602621724,5.59210115,109400.0,109390.0,0.04890042]
[1756602622651,5.59209949,109400.0,109390.0,0.04890042]
[1756602623401,5.11602291,109400.0,109390.0,0.04890042]
[1756602623603,0.55893691,109400.0,109390.0,0.365417]
[1756602623817,0.03612156,109400.0,109390.0,0.54824906]
[1756602624021,0.02968482,109400.0,109390.0,0.41874148]
[1756602624197,0.01252184,109400.0,109390.0,0.73525806]
[1756602624947,0.19533719,109400.0,109390.0,0.25922148]
[1756602625151,0.19533719,109400.0,109390.0,0.552386]
[1756602625351,0.19533719,109400.0,109390.0,0.73521806]
[1756602627937,0.19533719,109400.0,109390.0,0.41870148]
[1756602628138,0.19533719,109400.0,109390.0,0.73521806]
[1756602633079,0.19533719,109400.0,109390.0,0.41870148]
[1756602633299,0.01252184,109400.0,109390.0,0.73521806]
[1756602633498,0.01252184,109400.0,109390.0,0.41870148]
[1756602633628,0.01252184,109400.0,109390.0,0.73521806]
[1756602634074,0.01252184,109400.0,109390.0,0.41870148]
[1756602634279,0.01252184,109400.0,109390.0,0.73521806]
[1756602634609,0.19533719,109400.0,109390.0,0.41870148]
[1756602634809,0.19533719,109400.0,109390.0,0.73521806]
[1756602634981,0.19533719,109400.0,109390.0,0.41870148]
[1756602635334,0.19533719,109400.0,109390.0,0.73521806]
[1756602636634,0.19533719,109400.0,109390.0,0.41870148]
[1756602636850,0.19533719,109400.0,109390.0,0.73521806]
[1756602639414,0.19533719,109400.0,109390.0,0.552186]
[1756602639771,0.19533719,109400.0,109390.0,0.73501806]
[1756602640982,0.19533719,109400.0,109390.0,0.41850148]
[1756602641186,0.19533719,109400.0,109390.0,0.73501806]
[1756602641806,0.19736719,109400.0,109390.0,0.552146]
[1756602642222,0.19736719,109400.0,109390.0,0.23562942]
[1756602642416,0.19736719,109400.0,109390.0,0.07638942]
[1756602642625,0.19736719,109400.0,109390.0,0.552146]
[1756602644185,0.85388377,109400.0,109390.0,0.07324942]
[1756602644384,0.87420959,109400.0,109390.0,0.04367042]
[1756602644589,5.43129559,109400.0,109390.0,0.04367042]
[1756602644789,5.43771462,109400.0,109390.0,0.04367042]
[1756602645070,5.43771462,109400.0,109390.0,0.20287042]
[1756602646010,5.42316278,109400.0,109390.0,0.20287042]
[1756602646822,5.42198278,109400.0,109390.0,0.20287042]
[1756602649789,5.1054662,109400.0,109390.0,0.20287042]
[1756602649995,5.1054662,109400.0,109390.0,0.20794042]
[1756602650198,5.42198278,109400.0,109390.0,0.20794042]
[1756602650775,5.42198278,109400.0,109390.0,0.04882042]
[1756602650982,5.42198278,109400.0,109390.0,0.20794042]
[1756602651216,5.1054662,109400.0,109390.0,0.20794042]
[1756602651423,5.42198278,109400.0,109390.0,0.20794042]
[1756602653363,5.1054662,109400.0,109390.0,0.20794042]
[1756602653750,5.41557517,109400.0,109390.0,0.20794042]
[1756602653904,5.42199788,109400.0,109390.0,0.20794042]
[1756602656861,0.86491188,109400.0,109390.0,0.20794042]
[1756602657355,0.86490902,109400.0,109390.0,0.20794042]
[1756602657556,0.54839244,109400.0,109390.0,0.20794042]
[1756602657757,0.86490902,109400.0,109390.0,0.20794042]
[1756602658121,0.86490902,109400.0,109390.0,0.20279042]
[1756602658862,0.86490902,109400.0,109390.0,0.20587042]
[1756602659707,0.86490902,109400.0,109390.0,0.20279042]
[1756602663153,0.84778386,109400.0,109390.0,0.20279042]
[1756602663264,0.86491024,109400.0,109390.0,0.20279042]
[1756602663672,0.86491047,109400.0,109390.0,0.20279042]
[1756602664429,0.54839389,109400.0,109390.0,0.20279042]
[1756602664626,0.54839389,109400.0,109390.0,0.04367042]
[1756602664627,0.86491047,109400.0,109390.0,0.04367042]
[1756602664828,0.86491047,109400.0,109390.0,0.20259042]
[1756602664829,0.54839389,109400.0,109390.0,0.20259042]
[1756602665069,0.86491047,109400.0,109390.0,0.20259042]
[1756602667517,0.86491047,109400.0,109390.0,0.04367042]
[1756602667754,0.86491047,109400.0,109390.0,0.20259042]
[1756602668399,0.86091047,109400.0,109390.0,0.04367042]
[1756602668609,0.86091047,109400.0,109390.0,0.20255042]
[1756602670290,0.86092431,109400.0,109390.0,0.20255042]
[1756602673792,0.85451562,109400.0,109390.0,0.20255042]
[1756602673994,0.86094825,109400.0,109390.0,0.20255042]
[1756602674784,0.86095741,109400.0,109390.0,0.20255042]
[1756602677544,0.86095977,109400.0,109390.0,0.20255042]
[1756602677754,0.54444319,109400.0,109390.0,0.20770042]
[1756602677971,0.54241319,109400.0,109390.0,0.20770042]
[1756602678182,0.85892977,109400.0,109390.0,0.20770042]
[1756602678392,0.86088977,109400.0,109390.0,0.20770042]
[1756602678818,0.85892977,109400.0,109390.0,0.20770042]
[1756602679595,0.85893717,109400.0,109390.0,0.20770042]
[1756602679971,0.54242059,109400.0,109390.0,0.20770042]
[1756602680170,0.85893717,109400.0,109390.0,0.20770042]
[1756602680530,0.86097717,109400.0,109390.0,0.20770042]
[1756602681331,0.20642059,109400.0,109390.0,0.524217]
[1756602681771,0.1999828,109400.0,109390.0,0.524217]
[1756602682355,0.18281535,109400.0,109390.0,0.524217]
[1756602683600,0.18281535,109400.0,109390.0,0.365337]
[1756602683753,0.18281535,109400.0,109390.0,0.524057]
[1756602684753,0.18281535,109400.0,109390.0,0.20754042]
[1756602684927,0.18281535,109400.0,109390.0,0.524057]
[1756602687281,0.18281535,109400.0,109390.0,0.20754042]
[1756602687584,0.18281535,109400.0,109390.0,0.524057]
[1756602690213,0.18281535,109400.0,109390.0,0.551545]
[1756602693810,0.18281535,109400.0,109390.0,0.23502842]
[1756602694014,0.18281535,109400.0,109390.0,0.551545]
[1756602696315,0.18281535,109400.0,109390.0,0.51486176]
[1756602701495,0.18281535,109400.0,109390.0,0.19834518]
[1756602701696,0.18281535,109400.0,109390.0,0.51486176]
[1756602701888,0.18281535,109400.0,109390.0,0.19834518]
[1756602702341,0.18281535,109400.0,109390.0,0.51486176]
[1756602703938,0.18281535,109400.0,109390.0,0.51349269]
[1756602707424,0.18281535,109400.0,109390.0,0.03825611]
[1756602707579,0.18281535,109400.0,109390.0,0.51313269]
[1756602709366,0.18281535,109400.0,109390.0,0.19661611]
[1756602709565,0.18281535,109400.0,109390.0,0.03825611]
[1756602709723,0.20194991,109400.0,109390.0,0.19146611]
[1756602709946,0.20194991,109400.0,109390.0,0.50798269]
[1756602710145,0.20194991,109400.0,109390.0,0.19146611]
[1756602710445,0.20194991,109400.0,109390.0,0.16927811]
[1756602711743,0.19996991,109400.0,109390.0,0.16927811]
[1756602716373,0.19998065,109400.0,109390.0,0.16927811]
[1756602718022,0.19998065,109400.0,109390.0,0.48579469]
[1756602719598,0.19998065,109400.0,109390.0,0.16927811]
[1756602719795,0.19998065,109400.0,109390.0,0.48579469]
[1756602724204,0.51649723,109400.0,109390.0,0.16927811]
[1756602725993,0.51649624,109400.0,109390.0,0.16927811]
[1756602729229,0.51847624,109400.0,109390.0,0.16927811]
[1756602729440,0.51649624,109400.0,109390.0,0.16927811]
[1756602731271,0.51649624,109400.0,109390.0,0.01091811]
[1756602731567,0.51649624,109400.0,109390.0,0.16895811]
[1756602736358,0.51649624,109400.0,109390.0,0.19644611]
[1756602736518,0.51649892,109400.0,109390.0,0.19644611]
[1756602738525,0.51847892,109400.0,109390.0,0.19644611]
[1756602740223,0.51847982,109400.0,109390.0,0.19644611]
[1756602740651,0.51847982,109400.0,109390.0,0.03840611]
[1756602740885,0.51847982,109400.0,109390.0,0.19632611]
[1756602741552,0.51847982,109400.0,109390.0,0.19628611]
[1756602746292,0.20196324,109400.0,109390.0,0.19628611]
[1756602746493,0.51847982,109400.0,109390.0,0.19628611]
[1756602747146,0.50131193,109400.0,109390.0,0.19628611]
[1756602747353,0.51848041,109400.0,109390.0,0.22904415]
[1756602749372,0.51848041,109400.0,109390.0,0.22896415]
[1756602749573,0.51848041,109400.0,109390.0,0.22366415]
[1756602749748,0.51848041,109400.0,109390.0,0.22888415]
[1756602750351,0.51848041,109400.0,109390.0,0.19612611]
[1756602750880,0.51848082,109400.0,109390.0,0.19612611]
[1756602751447,0.52491924,109400.0,109390.0,0.19612611]
[1756602752025,0.52491924,109400.0,109390.0,0.19086611]
[1756602752160,0.52491924,109400.0,109390.0,0.19608611]
[1756602752356,0.52491924,109400.0,109390.0,0.03632611]
[1756602752608,0.52491924,109400.0,109390.0,0.19086611]
[1756602753154,0.86491924,109400.0,109390.0,0.03310611]
[1756602753353,5.42444524,109400.0,109390.0,0.19086611]
[1756602753568,5.45479723,109400.0,109390.0,0.19086611]
[1756602754012,5.45479723,109400.0,109390.0,0.16337811]
[1756602754299,5.45479723,109400.0,109390.0,0.00561811]
[1756602754503,5.45479723,109400.0,109390.0,0.16333811]
[1756602756276,5.22498083,109400.0,109390.0,0.16333811]
[1756602756450,5.40853618,109400.0,109390.0,0.16333811]
[1756602757916,5.40853622,109400.0,109390.0,0.16333811]
[1756602758843,5.40900622,109400.0,109390.0,0.16333811]
[1756602759320,0.52283206,109390.0,109380.0,0.10382811]
[1756602759535,5.39717464,109390.0,109380.0,0.19133105]
[1756602759749,5.71369122,109390.0,109380.0,0.19133105]
[1756602759949,0.86805164,109390.0,109380.0,0.16384105]
[1756602760393,0.86758164,109390.0,109380.0,0.16384105]
[1756602760739,0.86758164,109390.0,109380.0,0.16484105]
[1756602760943,0.86758164,109390.0,109380.0,0.16684105]
[1756602761274,0.55106506,109390.0,109380.0,0.16684105]
[1756602761510,0.55106506,109390.0,109380.0,0.17206105]
[1756602761649,0.86758164,109390.0,109380.0,0.01438105]
[1756602761838,0.86758164,109390.0,109380.0,0.17202105]
[1756602763540,0.55106506,109390.0,109380.0,0.17202105]
[1756602763750,0.86758164,109390.0,109380.0,0.17202105]
[1756602763880,0.86758164,109390.0,109380.0,0.17002105]
[1756602764284,0.86758164,109390.0,109380.0,0.16680105]
[1756602764487,0.86758164,109390.0,109380.0,0.00916105]
[1756602764684,0.55106506,109390.0,109380.0,0.16676105]
[1756602764891,0.86758164,109390.0,109380.0,0.16676105]
[1756602765346,0.86758164,109390.0,109380.0,0.00916105]
[1756602765538,0.86758164,109390.0,109380.0,0.16676105]
[1756602766139,0.55106506,109390.0,109380.0,0.16676105]
[1756602766370,0.86758164,109390.0,109380.0,0.16676105]
[1756602766560,5.42466764,109390.0,109380.0,0.16676105]
[1756602767279,5.42466764,109390.0,109380.0,0.16666974]
[1756602768224,5.44821864,109390.0,109380.0,0.16666974]
[1756602768637,5.44821703,109390.0,109380.0,0.16666974]
[1756602769346,5.44821619,109390.0,109380.0,0.00906974]
[1756602769543,5.44821619,109390.0,109380.0,0.16666974]
[1756602769694,5.92229277,109390.0,109380.0,0.00906974]
[1756602771385,5.60577619,109390.0,109380.0,0.00906974]
[1756602772108,5.58222764,109390.0,109380.0,0.00906974]
[1756602772333,5.60577436,109390.0,109380.0,0.00906974]
[1756602774975,5.60573436,109390.0,109380.0,0.00906974]
[1756602777992,5.60569436,109390.0,109380.0,0.01199974]
[1756602779184,5.60570471,109390.0,109380.0,0.01199974]
[1756602786250,5.60570471,109390.0,109380.0,0.00906974]
[1756602788703,5.60574495,109390.0,109380.0,0.01199974]
[1756602799358,5.60576103,109390.0,109380.0,0.01199974]
[1756602799955,5.60576105,109390.0,109380.0,0.01199974]
[1756602800252,5.60576104,109390.0,109380.0,0.01199974]
[1756602803918,5.44828104,109390.0,109380.0,0.01199974]
[1756602804175,5.60544104,109390.0,109380.0,0.01199974]
[1756602810110,5.57150803,109390.0,109380.0,0.01199974]
[1756602810282,5.57794927,109390.0,109380.0,0.01199974]
[1756602812319,5.42078927,109390.0,109380.0,0.01199974]
[1756602812498,5.57786927,109390.0,109380.0,0.01199974]
[1756602815709,5.57782927,109390.0,109380.0,0.01199974]
[1756602820711,5.57138892,109390.0,109380.0,0.01199974]
[1756602820917,5.57782849,109390.0,109380.0,0.01199974]
[1756602822325,5.42078849,109390.0,109380.0,0.01199974]
[1756602822521,5.57774849,109390.0,109380.0,0.01199974]
[1756602822780,5.42078849,109390.0,109380.0,0.01199974]
[1756602823001,5.57770849,109390.0,109380.0,0.01199974]
[1756602823390,5.39487643,109390.0,109380.0,0.01199974]
[1756602823722,5.57770849,109390.0,109380.0,0.01199974]
[1756602824472,5.57770813,109390.0,109380.0,0.01199974]
[1756602825880,5.26115155,109390.0,109380.0,0.01407974]
[1756602826078,5.57766813,109390.0,109380.0,0.01407974]
[1756602826300,5.60516213,109390.0,109380.0,0.01407974]
[1756602826516,5.28864555,109390.0,109380.0,0.01407974]
[1756602826754,5.60516213,109390.0,109380.0,0.01407974]
[1756602827118,5.92167871,109390.0,109380.0,0.00906974]
[1756602827330,5.60516213,109390.0,109380.0,0.01203974]
[1756602831383,5.59872199,109390.0,109380.0,0.01203974]
[1756602831608,5.2651618,109390.0,109380.0,0.01203974]
[1756602834779,5.6051618,109390.0,109380.0,0.01203974]
[1756602836939,5.92167838,109390.0,109380.0,0.00906974]
[1756602839806,5.92454094,109390.0,109380.0,0.00906974]
[1756602840383,5.92454094,109390.0,109380.0,0.00806974]
[1756602840762,5.92454094,109390.0,109380.0,0.00606974]
[1756602841305,5.91523843,109390.0,109380.0,0.00606974]
[1756602841501,5.94431855,109390.0,109380.0,0.00606974]
[1756602841971,6.06163641,109390.0,109380.0,0.00606974]
[1756602842191,6.06262769,109390.0,109380.0,0.00606974]
[1756602842692,6.06246769,109390.0,109380.0,0.00606974]
[1756602843528,6.06346769,109390.0,109380.0,0.00606974]
[1756602843733,5.27371453,109390.0,109380.0,0.00915974]
[1756602843929,5.74695111,109390.0,109380.0,0.00915974]
[1756602844535,5.74694993,109390.0,109380.0,0.00915974]
[1756602845276,5.43043335,109390.0,109380.0,0.00915974]
[1756602845472,5.74694993,109390.0,109380.0,0.00915974]
[1756602845693,5.74690993,109390.0,109380.0,0.00915974]
[1756602845901,5.74690993,109390.0,109380.0,0.00606974]
[1756602846985,5.74690993,109390.0,109380.0,0.00915974]
[1756602847349,5.72713206,109390.0,109380.0,0.00915974]
[1756602848125,5.7271251,109390.0,109380.0,0.00606974]
[1756602848427,5.7271251,109390.0,109380.0,0.00915974]
[1756602848633,5.7271251,109390.0,109380.0,0.00606974]
[1756602849092,5.74689378,109390.0,109380.0,0.00606974]
[1756602850243,5.7889124,109390.0,109370.0,0.00349]
[1756602850443,5.96258795,109380.0,109370.0,0.00044767]
[1756602850664,6.00881523,109380.0,109370.0,0.00044767]
[1756602850893,6.01322123,109380.0,109370.0,0.00353767]
[1756602851116,6.01322123,109380.0,109370.0,0.00556767]
[1756602851335,6.01322123,109380.0,109370.0,0.00353767]
[1756602851565,5.35659244,109380.0,109370.0,0.00556767]
[1756602851786,6.0132129,109380.0,109370.0,0.00353767]
[1756602852211,6.01321294,109380.0,109370.0,0.00353767]
[1756602852658,6.01321294,109380.0,109370.0,0.00556767]
[1756602853366,6.01321294,109380.0,109370.0,0.00044767]
[1756602853594,5.99344426,109380.0,109370.0,0.00044767]
[1756602853811,5.99344426,109380.0,109370.0,0.00353767]
[1756602854413,5.99444426,109380.0,109370.0,0.00353767]
[1756602854731,5.99344426,109380.0,109370.0,0.00556767]
[1756602854940,5.99544426,109380.0,109370.0,0.00556767]
[1756602855386,5.99444426,109380.0,109370.0,0.00556767]
[1756602855595,5.99544426,109380.0,109370.0,0.00556767]
[1756602856034,5.83880426,109380.0,109370.0,0.00556767]
[1756602856288,5.99540426,109380.0,109370.0,0.00556767]
[1756602856511,5.99540426,109380.0,109370.0,0.00353767]
[1756602856743,5.3623711,109380.0,109370.0,0.00353767]
[1756602856915,5.99540426,109380.0,109370.0,0.00353767]
[1756602857200,5.2057711,109380.0,109370.0,0.00556767]
[1756602857394,5.99540426,109380.0,109370.0,0.00353767]
[1756602857615,5.99540426,109380.0,109370.0,0.00556767]
[1756602858372,5.83806426,109380.0,109370.0,0.00556767]
[1756602858600,5.99466426,109380.0,109370.0,0.00556767]
[1756602859189,5.99540426,109380.0,109370.0,0.00556767]
[1756602860247,5.99540423,109380.0,109370.0,0.00044767]
[1756602860702,5.99540423,109380.0,109370.0,0.00342767]
[1756602861421,5.36237107,109380.0,109370.0,0.00342767]
[1756602861568,5.99540423,109380.0,109370.0,0.00342767]
[1756602862157,5.96895395,109380.0,109370.0,0.00342767]
[1756602862361,5.99538045,109380.0,109370.0,0.00342767]
[1756602863193,5.99538045,109380.0,109370.0,1e-08]
[1756602863391,0.5228655,109370.0,109360.0,0.0004]
[1756602863602,5.57945458,109370.0,109360.0,0.00044767]
[1756602863827,5.57945458,109370.0,109360.0,0.00251767]
[1756602864052,5.60695258,109370.0,109360.0,0.00251767]
[1756602865199,5.60695258,109370.0,109360.0,0.00549767]
[1756602865729,5.60052616,109370.0,109360.0,0.00549767]
[1756602866036,5.60695348,109370.0,109360.0,0.00549767]
[1756602867387,5.60893348,109370.0,109360.0,0.00549767]
[1756602867562,0.52288222,109360.0,109350.0,0.0004]
[1756602867770,5.5794322,109360.0,109350.0,0.0004477]
[1756602867929,1.0243262,109360.0,109350.0,0.0004477]
[1756602868155,5.6089122,109360.0,109350.0,0.0054977]
[1756602870244,5.13389562,109360.0,109350.0,0.0054977]
[1756602870653,5.4504122,109360.0,109350.0,0.0064977]
[1756602870813,5.4523922,109360.0,109350.0,0.0064977]
[1756602871016,5.4523922,109360.0,109350.0,0.0074977]
[1756602871828,5.6088722,109360.0,109350.0,0.0074977]
[1756602872782,5.59958929,109360.0,109350.0,0.0074977]
[1756602873017,5.60888161,109360.0,109350.0,0.0074977]
[1756602874153,5.60888161,109360.0,109350.0,0.0045177]
[1756602874294,5.60888161,109360.0,109350.0,0.0074977]
[1756602874522,5.60888161,109360.0,109350.0,0.0064977]
[1756602875082,5.60888161,109360.0,109350.0,0.0054977]
[1756602875249,5.45240161,109360.0,109350.0,0.0054977]
[1756602875406,5.60888161,109360.0,109350.0,0.0054977]
[1756602875702,5.29236503,109360.0,109350.0,0.0054977]
[1756602875875,5.60884161,109360.0,109350.0,0.0054977]
[1756602876612,5.45240161,109360.0,109350.0,0.0025177]
[1756602876793,5.45240161,109360.0,109350.0,0.0054977]
[1756602876966,5.60884161,109360.0,109350.0,0.0054977]
[1756602877707,5.13588503,109360.0,109350.0,0.0054977]
[1756602877931,5.60884161,109360.0,109350.0,0.0054977]
[1756602880017,5.13390503,109360.0,109350.0,0.32201428]
[1756602880233,0.54931903,109360.0,109350.0,0.32201428]
[1756602880855,0.54931903,109360.0,109350.0,0.0054977]
[1756602881061,0.54931903,109360.0,109350.0,0.32201428]
[1756602881292,0.54931903,109360.0,109350.0,0.0054977]
[1756602881710,0.54931903,109360.0,109350.0,0.32201428]
[1756602881911,0.54931903,109360.0,109350.0,0.0054977]
[1756602881912,0.57681803,109360.0,109350.0,0.0054977]
[1756602883501,0.57684329,109360.0,109350.0,0.0054977]
[1756602885293,0.57684329,109360.0,109350.0,0.32201428]
[1756602885491,0.57684329,109360.0,109350.0,0.0054977]
[1756602888374,0.55132429,109360.0,109350.0,0.0054977]
[1756602889508,0.54934429,109360.0,109350.0,0.0054977]
[1756602892480,0.55139429,109360.0,109350.0,0.0054977]
[1756602894133,0.55139864,109360.0,109350.0,0.0054977]
[1756602894708,0.55139872,109360.0,109350.0,0.0054977]
[1756602895343,0.55139872,109360.0,109350.0,0.00412041]
[1756602895546,0.55139872,109360.0,109350.0,0.00114041]
[1756602895885,0.55139872,109360.0,109350.0,0.00407041]
[1756602897392,0.55139872,109360.0,109350.0,0.32058699]
[1756602897742,0.55139996,109360.0,109350.0,0.32058699]
[1756602898554,0.54934996,109360.0,109350.0,0.32058699]
[1756602898759,0.55139996,109360.0,109350.0,0.32058699]
[1756602898999,0.55139996,109360.0,109350.0,0.00407041]
[1756602899179,0.55139996,109360.0,109350.0,0.32058699]
[1756602899770,0.18289894,109350.0,109340.0,0.07072]
[1756602899968,0.18289894,109350.0,109340.0,0.63994297]
[1756602900124,0.18289894,109350.0,109340.0,0.64209297]
[1756602900726,0.18289894,109350.0,109340.0,0.82500864]
[1756602900929,0.52289894,109350.0,109340.0,0.37433311]
[1756602901131,0.52289894,109350.0,109340.0,0.40283111]
[1756602901384,0.52289894,109350.0,109340.0,0.72034769]
[1756602901712,0.52289894,109350.0,109340.0,0.19875439]
[1756602901909,0.52289894,109350.0,109340.0,0.67159097]
[1756602902088,0.52289894,109350.0,109340.0,0.35507439]
[1756602902425,0.52289894,109350.0,109340.0,0.67159097]
[1756602903459,0.52494894,109350.0,109340.0,0.10577438]
[1756602903660,0.52494894,109350.0,109340.0,0.55111296]
[1756602903880,0.52289894,109350.0,109340.0,0.48079296]
[1756602904084,0.52289894,109350.0,109340.0,0.16427638]
[1756602904292,0.52289894,109350.0,109340.0,0.48079296]
[1756602904869,0.52289894,109350.0,109340.0,0.00795638]
[1756602905117,0.52289894,109350.0,109340.0,0.48079296]
[1756602908871,0.52289894,109350.0,109340.0,0.25725639]
[1756602909071,0.52289894,109350.0,109340.0,0.62252969]
[1756602909267,0.52289894,109350.0,109340.0,0.65002869]
[1756602916261,0.52289894,109350.0,109340.0,0.83294436]
[1756602917730,0.18288222,109360.0,109350.0,0.18289894]
[1756602917934,0.52288222,109360.0,109350.0,0.09298001]
[1756602918153,0.52288222,109360.0,109350.0,0.73109317]
[1756602918355,0.52288222,109360.0,109350.0,0.59747553]
[1756602918562,0.52288222,109360.0,109350.0,0.94148711]
[1756602918968,0.52288222,109360.0,109350.0,0.99024383]
[1756602920298,0.52288222,109360.0,109350.0,0.94148711]
[1756602920700,0.52288222,109360.0,109350.0,0.99024383]